Cogmind - Beta 12 *** ADVENTURER MODE // 2024.02.19 @ 14:20:16 Player: Takagiro Result: Destroyed by as-93544 with Assembled Blade Performance ------------- Evolutions (0) 0 Regions Visited (2) 400 Robots Destroyed (13) 65 Value Destroyed (139) 139 Prototype IDs (0) 0 Alien Tech Used (0) 0 Bonus (0) 0 TOTAL SCORE: 604 Bonus ------- None Cogmind --------- Core Integrity 0/250 Matter 272/300 Energy 66/100 System Corruption 2% Temperature Cool (48) Movement Core (400) Ox7 Location -10/Mines Parts ------- > --- POWER (1) -------- (None) > --- PROPULSION (2) --- (None) > --- UTILITY (2) ------ Large Storage Unit > --- WEAPON (2) ------- Small Laser Beam Cannon > --- INVENTORY (15) --- Light Ion Engine Light Ion Engine Light Ion Engine Light Ion Engine Light Treads Light Treads Light Treads Aluminum Leg Aluminum Leg Weapon Shielding Heavy EM Pulse Gun Light Assault Rifle Peak State ------------ > --- POWER ------------ Ion Engine > --- PROPULSION ------- Light Treads Light Treads > --- UTILITY ---------- Large Storage Unit Improved Terrain Scanner > --- WEAPON ----------- Small Laser Small Laser > --- INVENTORY -------- Light Ion Engine Light Ion Engine Light Ion Engine Light Ion Engine Aluminum Leg Aluminum Leg EM Pulse Gun Beam Cannon Beam Cannon Beam Cannon [Rating: 10] Favorites ----------- Power Ion Engine Engine Ion Engine Propulsion Light Treads Treads Light Treads Utility Improved Terrain Scanner Device Improved Terrain Scanner Storage Large Storage Unit Protection Core Shielding Weapon Small Laser Energy Gun Small Laser Energy Cannon Beam Cannon Special Weapon Mining Laser Build | -11 -10 -10 ------- Run | Jun Mat Min Slots Evolved . | . . . Power . | . . . Propulsion . | . . . Utility . | . . . Weapon . | . . . Parts Attached 15 | 10 1 4 Power 3 | 2 . 1 Engine 3 | 2 . 1 Core . | . . . Reactor . | . . . Propulsion 2 | 2 . . Treads 2 | 2 . . Leg . | . . . Wheel . | . . . Hover . | . . . Flight . | . . . Utility 4 | 2 1 1 Device 1 | 1 . . Storage 2 | 1 1 . Processor . | . . . Hackware . | . . . Protection 1 | . . 1 Artifact . | . . . Weapon 6 | 4 . 2 Energy Gun 3 | 3 . . Energy Cannon 2 | . . 2 Ballistic Gun . | . . . Ballistic Cannon . | . . . Launcher . | . . . Special Weapon 1 | 1 . . Impact Weapon . | . . . Slashing Weapon . | . . . Piercing Weapon . | . . . Special Melee Weapon . | . . . Unidentified Prototypes . | . . . Parts Lost 6 | . . 6 Power 1 | . . 1 Propulsion 2 | . . 2 Utility 2 | . . 2 Weapon 1 | . . 1 Highest Loss Streak 6 | . . 6 To Critical Strikes . | . . . Average Slot Usage (%) 96 | . 100 95 Engine 13 | . 14 12 Treads 26 | . 28 26 Device 12 | . 14 12 Storage 14 | . 14 14 Energy Gun 27 | . 28 26 Naked Turns . | . . . Heaviest Build 28 | 13 28 28 Greatest Support 40 | 40 40 40 Greatest Overweight (x) 7 | . . 7 Average Overweight (x) . | . . . Largest Inventory Capacity 15 | 8 15 15 Average Capacity 12 | 7 14 15 Most Carried 15 | 8 15 15 Average Carried 11 | 6 11 14 Final Capacity 15 | 8 15 15 Final Carried 15 | 7 15 12 Class Distribution -------------------- 100% | Mutant Dominant Class ---------------- Mutant | -10/Materials Mutant | -10/Mines Resources | -11 -10 -10 ----------- Run | Jun Mat Min Matter Collected 302 | 227 . 75 Remotely . | . . . Salvage Created 335 | 219 10 106 Parts 36 | 23 3 10 Haulers Intercepted . | . . . Recyclers Shooed 1 | . . 1 Parts Field Recycled . | . . . Retrieved Matter . | . . . Parts Self-Destructed . | . . . Prevented . | . . . Kills | -11 -10 -10 ------- Run | Jun Mat Min Combat Hostiles Destroyed 7 | . . 7 Guns 5 | . . 5 Cannons 2 | . . 2 Classes Destroyed 7 | 3 1 3 Worker 2 | 2 . . Tunneler 6 | 5 . 1 Recycler 1 | 1 . . Watcher 1 | . 1 . Swarmer 2 | . . 2 Demolisher 1 | . . 1 Assembled 4 | . . 4 Best Kill Streak 5 | 3 1 5 Combat Bots Only 5 | . . 5 Max Kills in Single Turn 1 | 1 1 1 Gunslinging . | . . . Exploded . | . . . Melee . | . . . Uniques/NPCs Destroyed . | . . . Combat | -11 -10 -10 -------- Run | Jun Mat Min Damage Taken 882 | 245 . 637 Core 253 | 58 . 195 Absorbed by Shields . | . . . Redirected to Shielding 19 | . . 19 Core Remaining (%) 76 | 76 . . Volleys Fired 40 | 19 1 20 Largest 2 | 2 2 2 Hottest 100 | 100 80 100 Shots Fired 74 | 31 2 41 Gun 62 | 24 2 36 Cannon 5 | . . 5 Launcher . | . . . Special 7 | 7 . . Kinetic . | . . . Thermal 74 | 31 2 41 Explosive . | . . . Electromagnetic . | . . . Robot Hit Streak 13 | 9 10 13 Robot Miss Streak 2 | 1 . 2 Penetration Max . | . . . Secondary Targets 2 | . . 2 Max Gunslinging Chain 1 | . . 1 Shots Hit Robots 46 | 18 1 27 Core Hits 23 | 9 1 13 Critical Kills . | . . . Critical Parts Destroyed . | . . . Critical Strikes . | . . . Melee Attacks . | . . . Impact . | . . . Slashing . | . . . Piercing . | . . . Sneak Attacks . | . . . Combat Hostiles . | . . . Follow-up Attacks . | . . . Damage Inflicted 532 | 195 12 325 Guns 459 | 195 12 252 Cannons 71 | . . 71 Explosions . | . . . Melee . | . . . Ramming 2 | . . 2 Kinetic . | . . . Thermal 530 | 195 12 323 Explosive . | . . . Electromagnetic . | . . . Impact . | . . . Slashing . | . . . Piercing . | . . . Highest Corruption 2 | . 2 2 Average Corruption 1 | . 1 2 Corruption Purged . | . . . Corruption Blocked . | . . . Effects 5 | . . 5 Matter Fused 2 | . . 2 Parts Rejected 1 | . . 1 Data Loss (minor) 1 | . . 1 Misfires 1 | . . 1 Overload Shots . | . . . Overflow Damage . | . . . Projectiles . | . . . Explosions . | . . . Melee . | . . . Knockbacks . | . . . Impact . | . . . Kinetic . | . . . Secondary . | . . . Self-Inflicted Damage . | . . . Shots . | . . . Rammed 1 | . . 1 Targets Rammed 1 | . . 1 Kicked . | . . . Crushed . | . . . Highest Temperature 250 | 72 18 250 Average Temperature 67 | 29 12 110 Received Heat Transfer 40 | . . 40 Effects 1 | . . 1 Energy Bleed 1 | . . 1 Siege Activations . | . . . Robots Corrupted . | . . . Combat Hostiles . | . . . Parts Fried . | . . . Impact Corruptions . | . . . Robots Melted . | . . . Combat Hostiles . | . . . Parts Melted 1 | 1 . . Heat Transferred 1198 | 450 25 723 Parts Sabotaged . | . . . Parts Stolen . | . . . Parts Stripped . | . . . Power Chain Reactions . | . . . Missiles Intercepted . | . . . Alert | -11 -10 -10 ------- Run | Jun Mat Min Peak Influence 74 | 40 44 74 Initial 22 | . 22 14 Average 44 | 21 29 65 Maximum Alert Level . | . . . Low Security (%) 100 | 100 100 100 Level 1 . | . . . Level 2 . | . . . Level 3 . | . . . Level 4 . | . . . Level 5 . | . . . High Security . | . . . Max Security . | . . . Squads Dispatched . | . . . Investigation . | . . . Extermination . | . . . Reinforcement . | . . . Assault . | . . . Garrison . | . . . Intercept . | . . . Searches Triggered . | . . . Construction Impeded . | . . . Haulers Reinforced . | . . . Active Scanning Responses . | . . . Cargo Convoy Interrupts . | . . . Stealth | -11 -10 -10 --------- Run | Jun Mat Min Distress Signals . | . . . Communications Jammed . | . . . Distress Signals . | . . . Times Spotted 21 | . 1 20 Peak Tracking Total 7 | . . 7 Tactical Retreats . | . . . Traps | -11 -10 -10 ------- Run | Jun Mat Min Traps Triggered 2 | . 2 . Indirectly . | . . . Trap Hack Attempts . | . . . Triggered . | . . . Disarmed . | . . . Reprogrammed . | . . . Reused . | . . . Traps Extracted . | . . . Installed . | . . . Triggered . | . . . Machines | -11 -10 -10 ---------- Run | Jun Mat Min Machines Disabled . | . . . Max in Single Turn . | . . . Machines Repaired . | . . . Machines Sabotaged . | . . . Overloaded Fab Kills . | . . . Hacking | -11 -10 -10 --------- Run | Jun Mat Min Machines Accessed 1 | . 1 . Terminals . | . . . Fabricators . | . . . Repair Stations . | . . . Recycling Units 1 | . 1 . Scanalyzers . | . . . Garrison Access . | . . . Total Hacks 1 | . 1 . Successful 1 | . 1 . Failed . | . . . Catastrophic . | . . . Database Lockouts . | . . . Manual . | . . . Terminals . | . . . Fabricators . | . . . Repair Stations . | . . . Recycling Units 1 | . 1 . Scanalyzers . | . . . Garrison Access . | . . . Terminal Hacks . | . . . Fabricator Hacks . | . . . Repair Station Hacks . | . . . Recycling Unit Hacks 1 | . 1 . Retrieve Components 1 | . 1 . Scanalyzer . | . . . Garrison Access Hacks . | . . . Unauthorized Hacks . | . . . Terminals . | . . . Fabricators . | . . . Repair Stations . | . . . Recycling Units . | . . . Scanalyzers . | . . . Garrison Access . | . . . Data Cores Recovered . | . . . Used . | . . . Hacking Detections 1 | . 1 . Full Trace Events . | . . . Feedback Events . | . . . Feedback Blocked . | . . . Robot Schematics Acquired . | . . . Robots Built . | . . . Authchips . | . . . Time . | . . . Total Robot Build Rating . | . . . Part Schematics Acquired . | . . . Parts Built . | . . . Authchips . | . . . Time . | . . . Total Part Build Rating . | . . . Parts Repaired . | . . . Time . | . . . Parts Recycled . | . . . Recycled Matter . | . . . Retrieved Matter . | . . . Retrieved Components 2 | . 2 . Parts Scanalyzed . | . . . Part Schematics Acquired . | . . . Parts Damaged . | . . . Bothacking | -11 -10 -10 ------------ Run | Jun Mat Min Used RIF Installer . | . . . Robots Hacked . | . . . Non-combat . | . . . Combat . | . . . Robot Hacks Applied . | . . . Relay Couplers Released . | . . . Fabnet Peak Effective % . | . . . Robots Rewired . | . . . Allies Hacked . | . . . Hacks Repelled . | . . . Allies | -11 -10 -10 -------- Run | Jun Mat Min Total Allies 1 | . . 1 Largest Group 1 | . . 1 Highest-Rated Group 31 | . . 31 Highest-Rated Ally 31 | . . 31 Total Orders . | . . . Ally Attacks 3 | . . 3 Total Damage 20 | . . 20 Kills . | . . . Allies Corrupted . | . . . Allies Melted . | . . . Intel | -11 -10 -10 ------- Run | Jun Mat Min Robot Analysis Total . | . . . Derelict Logs Recovered . | . . . Drone Launches . | . . . Drone Recoveries . | . . . Exploration | -11 -10 -10 ------------- Run | Jun Mat Min Turns Passed 747 | 237 162 348 Spaces Moved 365 | 101 92 172 Core 14 | 11 . 3 Treads 351 | 90 92 169 Legs . | . . . Wheels . | . . . Hover . | . . . Flight . | . . . Fastest Speed 50 | 50 160 160 Average Speed 158 | 148 160 164 Slowest Speed 400 | 160 160 400 Overloaded Moves . | . . . Propulsion Burnouts . | . . . Robots Hopped . | . . . Cave-ins Triggered 1 | 1 . . Exploration Rate (%) 22 | 7 25 34 Regions Visited 2 Branch Regions 1 Pre-discovered Areas 1 | . . 1 Known Exits Taken . | . . . Unknown Exits Taken 2 | 1 1 . Scrap Searched . | . . . Spaces Dug 7 | 7 . . Terrain Destroyed 7 | 7 . . Melee . | . . . Projectile 7 | 7 . . AOE . | . . . Terrain Rammed . | . . . Walls Destroyed . | . . . Machines Disabled . | . . . Actions | -11 -10 -10 --------- Run | Jun Mat Min Total 448 | 142 105 201 Wait . | . . . Move 362 | 99 91 172 Hop . | . . . Pick Up 24 | 12 10 2 Fast Attach 3 | 3 . . Attach 9 | 5 . 4 Detach . | . . . Swap 3 | 2 1 . Drop 5 | 1 2 2 Fire 40 | 19 1 20 Melee . | . . . Ram . | . . . Kick . | . . . Crush 1 | . . 1 Escape Stasis 1 | 1 . . Rewire . | . . . Trap . | . . . Miscellaneous . | . . . Route ------- -11/Junkyard -10/Materials -10/Mines History --------- Turn | Location | Event 7 | -11/Junkyard | Discovered new exit (range 16) 204 | -11/Junkyard | Crushed by falling debris 238 | -11/Junkyard | Entered Materials 313 | -10/Materials | Build established: Mutant 363 | -10/Materials | Discovered new exit (range 13) 400 | -10/Materials | Entered Mines 409 | -10/Mines | Escorted by a lone wolf Derelict 429 | -10/Mines | Learned location of Storage (-9) 677 | -10/Mines | Assembled infested the area 722 | -10/Mines | Core integrity fell below 50% 726 | -10/Mines | Core integrity fell below 20% 748 | -10/Mines | Destroyed by as-93544 with Assembled Blade Last Messages --------------- as-06007 destroyed. as-89975 destroyed. as-30932 destroyed. as-75512 destroyed. C6-PTK(g): "Mission, incomplete...*fzzt*" C6-PTK(g) destroyed. as-38498 destroyed. The unstable cave ceiling collapses. Lgt. Treads destroyed. as-93563 destroyed. D-53 Grenadier destroyed. The unstable cave ceiling collapses. Beam Cannon destroyed. D-53 Grenadier destroyed. as-50585 destroyed. Core Shielding destroyed. Overheating: Energy bleed (-6). The unstable cave ceiling collapses. as-10387 destroyed. The unstable cave ceiling collapses. Map ----- +----------------------------------------------------+ | ??????????### ##??#### ###?#?#!#?#?????? | | ????#???????## ##????# #????## #?????#?? | | ???????????### #?????# ####### #???????? | | ????????????# ##?????# ## #??#????? | | ???#???????## ##????#?###### ## #?#?????? | | ??########## ##????#??????# ## #?#??#?#? | | ####?#???????# ## ##?#???#? | | ?????###### #??###??????# ## #??????## | | ??????????# #???######??# #???????# | | ??????????## #???# ##?#### #??????## | | ??????????### #???# #????# #???###?? | | ????????????## #??## ###### #???????? | | ????????????## #### #???????? | | ???????????## ## ## #####???????? | | ???????????# ####### #?####??????? | | ???????# #??#??# ### ##?#?#??? | | ??????# ##???#?# ## ##?????? | | ??????## #####?#????# ## ###???? | | ???????###### ###?????###### ## %###?? | | ????????????###?????????# =#??? | | ????????????????????????#%###### ##??? | | ??????????????????#??#??# #???## #???? | | ????????????????????????# #????## #???# | | ????????????????#????#### ####??#### ##??? | | ?????????????????????# ##????#####??? | | ??????????????????#?## @ #??#??#?????? | | ???????????????#????# ##a # #???????????? | | ????????????????????# ##a #????????#??? | | ????????????????????# a #???????????? | | ??????????#????????## # # #???????????? | | ??????????????????# # #???????????? | | ??????????????????# ### ##???????????? | | ??????????????????#??## ##????????????? | | ?????????????????#??#?#######?#???????????? | | ???????????????????????????????????????#??? | | ????????????????????????#?????????????????? | | ??????????????????????????????????????????? | | ?????????????????????????????????#????????? | | ????????????? ????????????????????????????? | | ????????????????#?????????????????????????? | | ??????????????????????????????????????????? | | ???????????????????????????? ?????????????? | | ??????????????????????????????????????????? | | ??????????????????????????????????????????? | | ??????????????????????????????????????????? | | ??????????????????????????????????????????? | | ??????????????????????????????????????????? | | ??????????????????????????????????????????? | | ??????????????????????????????????????????? | | ??????????????????????????????????????????? | +----------------------------------------------------+ Best States ------------- Heat Dissipation 25 Energy Generation 10 Energy Capacity 250 Matter Stores 282 Matter Capacity 300 Sight Range 16 Terrain Scan Range 16 Terrain Scan Density 10 Resistance: KI 20 Resistance: TH 20 Resistance: EX 20 Resistance: EM 20 Resistance: I 20 Resistance: S 20 Resistance: P 20 Core Shielding 20 Evasion (%) 50 Recoil Reduction 2 Offensive Hacking 10 Item Schematics ----------------- None Robot Schematics ------------------ None Fabricated ------------ Nothing Alien Tech Used ----------------- None Achievements -------------- None Challenges ------------ None Game ------ Seed ThunderTitaniumFlakker Manual? 0 Play Time 00:10:00 Cumulative 8.6 hours Start 2024.02.19 @ 14:12:39 End 2024.02.19 @ 14:20:16 Sessions 1 Manual Loads 0 Difficulty Adventurer Special Mode None Game No. 13 Rogue 0 Adventurer 13 Explorer 0 Win Type - Total 0 Types 0/0/0/0/0/0/0/0/0 Lore% 5 Gallery% 14 Achievement% 11 Wizard Run 0 Options --------- ASCII 0 Keyboard 0 Movement Mouse Keybinds 0 Fullscreen 1 Font 18/SmallcapsGlow Map View 76x50 Tactical HUD 0 Map Filters NONE Filters NONE Steam 1 RUN: 5eed85ae-3263-4f36-a8f9-e3050b56a5ec